bitfinex-derivatives/quotes_SOLF0:USTF0_20250312
["timestamp","ask_amount","ask_price","bid_price","bid_amount"]
[1741790937645,0.05159088,124.64,124.62,8.0257]
[1741790937942,4.41953754,124.63,124.61,0.05854784]
[1741790938143,4.41953754,124.62,124.61,0.05854784]
[1741790939443,4.41953754,124.63,124.61,0.05854784]
[1741790939637,4.41953754,124.62,124.61,0.05854784]
[1741790939842,4.41953754,124.63,124.61,0.05854784]
[1741790940040,4.41953754,124.62,124.61,0.05854784]
[1741790940245,0.05159088,124.64,124.61,0.05854784]
[1741790941144,4.47555031,124.64,124.61,0.05854784]
[1741790941448,8.0258,124.62,124.61,0.05854784]
[1741790941643,12.45050913,124.62,124.61,0.05854784]
[1741790941849,4.42470913,124.62,124.61,0.05854784]
[1741790942143,12.45050913,124.63,124.61,0.05854784]
[1741790942349,4.42470913,124.62,124.61,0.05854784]
[1741790942746,12.45050913,124.62,124.61,0.05854784]
[1741790942947,4.42470913,124.62,124.61,0.05854784]
[1741790943147,42.65159088,124.64,124.61,0.05854784]
[1741790943348,4.42188223,124.63,124.61,0.05854784]
[1741790943849,8.0258,124.62,124.61,0.05854784]
[1741790944046,12.44768223,124.62,124.61,0.05854784]
[1741790944752,4.42188223,124.62,124.61,0.05854784]
[1741790944950,4.42188223,124.63,124.61,0.05854784]
[1741790945152,42.65159088,124.64,124.61,0.05854784]
[1741790945343,4.41885362,124.63,124.61,0.05854784]
[1741790945950,4.41885362,124.62,124.5,33.35812183]
[1741790946150,4.41885362,124.61,124.53,33.35812183]
[1741790946351,42.6,124.64,124.55,33.35812183]
[1741790946551,4.41722102,124.63,124.54,274.05812183]
[1741790946874,4.41722102,124.62,124.56,33.35812183]
[1741790947151,0.05079544,124.6,124.58,0.05546162]
[1741790947347,4.41841659,124.63,124.58,33.41358345]
[1741790947650,17.289207,124.72,124.62,33.35812183]
[1741790947945,47.02414697,124.71,124.62,33.35812183]
[1741790948150,6.43020303,124.7,124.62,33.35812183]
[1741790948351,6.43020303,124.69,124.62,33.35812183]
[1741790948541,0.05065782,124.67,124.65,0.05732043]
[1741790948945,0.05065782,124.67,124.66,8.0232]
[1741790949152,2.05653791,124.67,124.65,0.05732043]
[1741790949345,2.00588009,124.66,124.65,0.05732043]
[1741790950348,6.44125335,124.66,124.65,0.05732043]
[1741790951050,2.00588009,124.66,124.65,8.08122043]
[1741790951253,0.05065782,124.67,124.65,0.05732043]
[1741790951450,0.05065782,124.67,124.65,2.10602043]
[1741790951655,8.0232,124.66,124.65,0.05732043]
[1741790951859,12.46347246,124.66,124.65,0.05732043]
[1741790952251,4.44027246,124.66,124.65,0.05732043]
[1741790952653,4.49093028,124.67,124.65,0.05732043]
[1741790952953,42.58,124.72,124.65,0.05732043]
[1741790953158,4.43384796,124.71,124.62,75.93812183]
[1741790953456,8.022,124.68,124.65,8.0235]
[1741790953651,3.9732,124.73,124.62,75.93812183]
[1741790953852,47.01029144,124.72,124.64,33.35812183]
[1741790954059,0.05436692,124.69,124.67,0.05058577]
[1741790954457,4.48465836,124.69,124.67,0.05058577]
[1741790954659,0.05436692,124.69,124.67,0.05058577]
[1741790955259,12.45365121,124.68,124.67,0.05058577]
[1741790956060,4.43175121,124.68,124.67,0.05058577]
[1741790956255,0.05436692,124.69,124.67,0.05058577]
[1741790956757,42.56,124.74,124.67,33.4087076]
[1741790956962,42.56,124.76,124.67,33.35812183]
[1741790957153,42.56,124.76,124.67,75.91812183]
[1741790957350,8.0171,124.76,124.73,8.0184]
[1741790957554,42.56,124.76,124.69,33.35812183]
[1741790957756,42.61703434,124.76,124.73,0.0585586]
[1741790957960,8.0178,124.75,124.73,0.0585586]
[1741790958159,42.61703434,124.76,124.73,0.0585586]
[1741790958363,0.05703434,124.76,124.73,0.0585586]
[1741790958868,8.0181,124.74,124.73,5.86e-05]
[1741790959263,8.0181,124.74,124.64,2.0731]
[1741790959264,8.02,124.74,124.64,2.0731]
[1741790959456,33.35812183,124.72,124.64,2.0731]
[1741790959661,44.6544,124.71,124.64,2.0731]
[1741790960270,0.05294858,124.69,124.66,0.05308585]
[1741790960566,8.0224,124.68,124.66,0.05308585]
[1741790960765,0.05294858,124.69,124.66,0.05308585]
[1741790962869,8.0226,124.67,124.66,0.05308585]
[1741790963072,42.54,124.67,124.57,102.85510971]
[1741790963268,2.00659035,124.66,124.57,102.85510971]
[1741790963568,8.0249,124.64,124.57,102.85510971]
[1741790963772,2.00659035,124.63,124.57,60.31510971]
[1741790963972,8.0271,124.6,124.57,14.1145]
[1741790964271,8.0271,124.6,124.59,0.05691244]
[1741790964469,10.03416033,124.6,124.59,0.05691244]
[1741790964770,2.00706033,124.6,124.53,54.22930971]
[1741790964971,2.00706033,124.59,124.54,8.0308]
[1741790965161,2.00706033,124.58,124.51,103.06510971]
[1741790965363,2.00706033,124.57,124.51,103.06510971]
[1741790965559,2.00706033,124.56,124.51,103.06510971]
[1741790965770,2.0037,124.62,124.53,0.05252713]
[1741790965771,0.05639389,124.55,124.53,0.05252713]
[1741790966069,42.54,124.59,124.51,6.2958]
[1741790966266,0.0584394,124.55,124.53,0.05252713]
[1741790966569,0.0584394,124.55,124.54,8.0309]
[1741790967158,0.0584394,124.55,124.53,0.05252713]
[1741790967667,2.00797964,124.54,124.53,0.05252713]
[1741790968169,0.0584394,124.55,124.53,0.05252713]
[1741790969576,2.00804599,124.54,124.53,0.05252713]
[1741790970171,0.0584394,124.55,124.53,0.05252713]
[1741790970765,2.06651357,124.55,124.53,0.05252713]
[1741790971172,0.0584394,124.55,124.53,0.05252713]
[1741790971661,0.0584394,124.55,124.53,8.08412713]
[1741790971865,0.0584394,124.55,124.53,0.05252713]
[1741790972771,2.06649802,124.55,124.53,0.05252713]
[1741790973071,0.0584394,124.55,124.53,0.05252713]
[1741790973474,2.0080554,124.54,124.49,4.1543]
[1741790973772,2.0080554,124.53,124.49,4.1543]
[1741790973971,8.032,124.53,124.49,12.1882]
[1741790974179,42.54,124.55,124.49,4.1543]
[1741790974372,2.00839129,124.54,124.49,4.1543]
[1741790974571,0.0591231,124.53,124.49,4.1543]
[1741790974966,0.0591231,124.53,124.52,8.0322]
[1741790975675,0.0591231,124.53,124.49,4.1543]
[1741790976375,0.0591231,124.53,124.5,54.22930971]
[1741790976575,50.5694,124.57,124.54,8.0306]
[1741790976775,2.00810823,124.56,124.54,8.0306]
[1741790976976,2.00810823,124.55,124.54,8.0306]
[1741790977277,42.54,124.61,124.52,54.22930971]
[1741790977479,2.0075674,124.6,124.54,54.22930971]
[1741790977677,6.7262,124.62,124.56,54.2811941]
[1741790977975,6.7262,124.62,124.58,54.22930971]
[1741790978169,0.1828,124.62,124.61,8.0264]
[1741790978371,119.48889257,124.64,124.6,96.76930971]
[1741790978574,17.16159227,124.64,124.62,54.22930971]
[1741790978877,4.51949227,124.64,124.63,8.0251]
[1741790979076,4.57922583,124.64,124.63,8.0251]
[1741790979277,4.57922583,124.64,124.62,0.05685131]
[1741790979278,0.05973356,124.64,124.62,8.08265131]
[1741790979571,0.05973356,124.64,124.62,0.05685131]
[1741790983180,0.05973356,124.64,124.63,33.38275927]
[1741790983370,2.0268,124.69,124.63,33.38275927]
[1741790983371,2.0268,124.69,124.65,8.0234]
[1741790983679,2.00598894,124.68,124.65,33.38275927]
[1741790983875,2.0809,124.72,124.67,33.38275927]
[1741790984080,1.9661,124.73,124.69,8.0212]
[1741790984380,2.1805,124.76,124.69,33.38275927]
[1741790984578,0.05684934,124.72,124.7,0.05187202]
[1741790984976,2.00508996,124.75,124.71,33.38275927]
[1741790985172,157.69616542,124.78,124.71,33.38275927]
[1741790985377,2.00459231,124.77,124.71,33.38275927]
[1741790985781,4.2243,124.81,124.71,33.38275927]
[1741790986081,35.38728901,124.8,124.69,75.90275927]
[1741790986279,0.06144448,124.77,124.75,0.05056701]
[1741790986475,2.00452974,124.76,124.75,0.05056701]
[1741790986673,0.06144448,124.77,124.75,0.05056701]
[1741790987372,8.0168,124.76,124.75,0.05056701]
[1741790987573,0.06144448,124.77,124.75,0.05056701]
[1741790988482,0.06144448,124.77,124.75,54.21482495]
[1741790988883,6.1576,124.85,124.75,62.23482495]
[1741790989082,6.1576,124.85,124.79,8.0144]
[1741790989281,6.1576,124.85,124.78,96.64425794]
[1741790989581,6.1576,124.85,124.8,8.0136]
[1741790989783,1.9688,124.85,124.78,96.64425794]
[1741790989979,42.48,124.88,124.8,0.06048379]
[1741790990278,0.05310624,124.83,124.82,8.0129]
[1741790990479,6.2547,124.89,124.81,54.16425794]
[1741790990681,0.05088484,124.84,124.82,42.48]
[1741790990983,48.7347,124.89,124.82,0.06075273]
[1741790991379,8.06693609,124.87,124.82,0.06075273]
[1741790991573,0.05673609,124.87,124.82,0.06075273]
[1741790992883,8.06683609,124.87,124.82,8.07325273]
[1741790993085,0.05673609,124.87,124.82,0.06075273]
[1741790993280,0.05673609,124.87,124.83,54.16425794]
[1741790993487,0.05673609,124.87,124.85,8.0106]
[1741790993685,0.05673609,124.87,124.83,54.16425794]
[1741790994086,0.05673609,124.87,124.84,0.05452677]
[1741790995187,8.0107,124.86,124.84,0.05452677]
[1741790995388,0.05673609,124.87,124.84,0.05452677]
[1741790996192,0.05673609,124.87,124.86,8.0104]
[1741790996390,0.05673609,124.87,124.84,0.05452677]
[1741790997289,8.0075,124.91,124.88,8.0088]
[1741790997682,4.3446,124.93,124.85,54.16425794]
[1741790997990,2.3562,124.93,124.87,54.16425794]
[1741790998286,8.0082,124.9,124.85,294.64425794]
[1741790998487,0.05321929,124.91,124.89,0.05058632]
[1741790998689,0.05321929,124.91,124.87,54.16425794]
[1741790998892,0.05321929,124.91,124.89,0.05725752]
[1741790999388,0.05321929,124.91,124.9,8.0078]
[1741790999785,0.05321929,124.91,124.89,54.22151546]
[1741790999986,0.05321929,124.91,124.89,0.05725752]
[1741791001089,0.05321929,124.91,124.89,54.22151546]
[1741791001295,0.05321929,124.91,124.89,0.05725752]
[1741791002193,0.05321929,124.91,124.89,54.22151546]
[1741791002384,0.05321929,124.91,124.89,0.05725752]
[1741791003090,0.05321929,124.91,124.9,8.0078]
[1741791003489,0.05321929,124.91,124.89,54.22151546]
[1741791003791,0.05321929,124.91,124.9,8.0078]
[1741791004187,2.02523,124.94,124.93,8.0059]
[1741791005192,2.02523,124.94,124.89,42.38]
[1741791005492,8.0063,124.93,124.92,0.05883112]
[1741791006193,2.02523,124.94,124.87,8.0096]
[1741791006394,2.02523,124.94,124.86,75.62178179]
[1741791006789,2.02523,124.94,124.87,8.0094]
[1741791006990,8.0074,124.91,124.86,75.62178179]
[1741791007191,8.0074,124.91,124.89,0.05185553]
[1741791007589,8.0653507,124.92,124.89,0.05185553]
[1741791007903,42.4182507,124.92,124.89,0.05185553]
[1741791008291,2.5567,124.91,124.83,8.0121]
[1741791008491,35.79848179,124.91,124.8,75.60178179]
[1741791008691,8.0121,124.84,124.79,240.3]
[1741791008890,42.36,124.87,124.81,8.0135]
[1741791009094,42.36,124.87,124.79,240.3]
[1741791009493,0.05178318,124.84,124.82,0.05418242]
[1741791009897,0.05178318,124.84,124.83,8.0123]
[1741791010096,0.05178318,124.84,124.82,0.05418242]
[1741791010495,0.05178318,124.84,124.83,8.0123]
[1741791010691,44.8823,124.9,124.82,54.12197261]
[1741791010896,44.8823,124.9,124.82,0.05418242]
[1741791011099,8.0097,124.88,124.83,8.0119]
[1741791011301,2.6094,124.89,124.81,42.36]
[1741791011500,2.6094,124.89,124.8,54.06779019]
[1741791011892,0.05871724,124.86,124.83,0.05799827]
[1741791012099,8.0116,124.84,124.83,0.05799827]
[1741791012295,42.41871724,124.86,124.83,0.05799827]
[1741791013099,42.41871724,124.86,124.79,240.3]
[1741791014002,0.05871724,124.86,124.82,54.06779019]
[1741791014201,0.05871724,124.86,124.84,54.06779019]
[1741791014403,0.05871724,124.86,124.85,8.011]
[1741791015103,2.5667,124.93,124.85,8.0]
[1741791015304,42.36,124.96,124.88,54.06779019]
[1741791015505,8.0066,124.92,124.88,54.06779019]
[1741791015803,42.36,124.96,124.87,8.0093]
[1741791016002,8.0078,124.91,124.87,8.0093]
[1741791016307,0.05694027,124.9,124.88,0.05171571]
[1741791016602,0.05694027,124.9,124.89,8.0084]
[1741791017007,2.02523,124.94,124.92,8.006]
[1741791017405,2.02523,124.94,124.91,8.0067]
[1741791017607,2.02523,124.94,124.9,54.06779019]
[1741791018003,2.02523,124.94,124.91,0.06024961]
[1741791018203,0.0577166,124.93,124.91,0.06024961]
[1741791018811,2.3577,125.0,124.92,96.40779019]
[1741791019113,5.2254,125.03,124.97,54.06779019]
[1741791019300,2.5634,125.03,124.97,54.06779019]
[1741791019501,2.3577,125.08,124.99,54.06779019]
[1741791019813,9.9978238,125.07,125.02,7.9997]
[1741791020108,0.06027454,125.05,125.02,0.05461046]
[1741791020301,7.9995,125.03,125.02,0.05461046]
[1741791020499,0.06027454,125.05,125.02,0.05461046]
[1741791021512,7.9995,125.03,125.02,0.05461046]
[1741791022403,7.999,125.04,125.02,0.05461046]
[1741791022600,0.06027454,125.05,125.02,0.05461046]
[1741791024306,8.0012,125.01,124.97,54.06779019]
[1741791024906,42.32,125.04,124.97,54.06779019]
[1741791025309,2.00070164,125.03,124.97,54.06779019]
[1741791025511,8.0013,125.01,124.99,0.05073434]
[1741791025707,0.06029385,125.02,124.99,0.05073434]
[1741791026115,8.0014,125.0,124.95,240.3]
[1741791026313,42.32,125.04,124.95,240.3]
[1741791026509,8.0017,125.0,124.95,248.3042]
[1741791026714,42.32,125.04,124.95,240.3]
[1741791026905,2.00071861,125.03,124.95,294.36779019]
[1741791027110,8.0027,124.98,124.95,294.36779019]
[1741791027319,0.05832189,125.01,124.98,0.05816593]
[1741791027510,2.00089654,125.0,124.95,240.3]
[1741791027711,2.00089654,124.99,124.92,42.3]
[1741791027917,2.00089654,124.98,124.92,42.3]
[1741791028217,2.00089654,124.97,124.91,54.06779019]
[1741791028412,2.00089654,124.96,124.91,54.06779019]
[1741791028619,2.0562008,124.95,124.93,0.0539347]
[1741791028813,10.00609654,124.94,124.93,0.0539347]
[1741791029220,2.00089654,124.94,124.93,0.0539347]
[1741791029819,2.00156124,124.94,124.93,0.0539347]
[1741791030619,2.00147066,124.94,124.93,0.0539347]
[1741791031916,10.00667066,124.94,124.93,0.0539347]
[1741791032120,2.00147066,124.94,124.89,240.14]
[1741791032322,2.00147066,124.93,124.89,240.14]
[1741791032523,2.00190952,124.92,124.89,294.20779019]
[1741791032723,42.28,124.98,124.89,294.20779019]
[1741791032920,10.00547818,124.97,124.92,8.0061]
[1741791033117,2.00167818,124.96,124.91,54.06779019]
[1741791033316,2.00167818,124.95,124.93,0.05547978]
[1741791033622,2.00167818,124.94,124.93,0.05547978]
[1741791034017,2.00167818,124.94,124.93,62.12866997]
[1741791034212,151.06232698,125.06,124.93,104.40326997]
[1741791034519,7.9998,125.03,124.98,8.0021]
[1741791034719,178.42291453,125.06,124.96,54.06779019]
[1741791035417,0.05914489,125.02,124.99,0.05080058]
[1741791035617,42.33914489,125.02,124.99,0.05080058]
[1741791035815,42.33914489,125.02,124.92,54.06779019]
[1741791036021,42.28,125.02,124.92,54.06779019]
[1741791036318,8.0027,124.98,124.94,8.0048]
[1741791036523,42.28,125.02,124.92,54.06779019]
[1741791037022,0.05423486,124.98,124.96,0.05537426]
[1741791038516,0.05423486,124.98,124.96,8.05877426]
[1741791038718,0.05423486,124.98,124.96,0.05537426]
[1741791039320,8.005,124.95,124.9,98.26999019]
[1741791039522,42.26,124.98,124.9,55.98999019]
[1741791039721,8.0046,124.95,124.92,8.0062]
[1741791039914,8.0046,124.95,124.9,55.98999019]
[1741791040113,42.26,124.98,124.9,55.98999019]
[1741791040311,8.0054,124.94,124.91,8.0067]
[1741791040519,0.05944565,124.95,124.93,0.05443691]
[1741791041522,8.0052,124.94,124.93,0.05443691]
[1741791041719,0.05944565,124.95,124.87,54.06779019]
[1741791041919,0.05944565,124.95,124.88,8.0088]
[1741791042127,42.26,124.94,124.85,54.06779019]
[1741791042313,2.7862,124.93,124.87,8.0094]
[1741791042517,2.7862,124.93,124.86,33.24723229]
[1741791042919,0.0581763,124.91,124.88,0.05641008]
[1741791043225,8.0081,124.9,124.88,0.05641008]
[1741791043523,0.0581763,124.91,124.88,0.05641008]
[1741791045227,8.0084,124.89,124.88,0.05641008]
[1741791046119,10.01108629,124.89,124.88,0.05641008]
[1741791047028,10.01112907,124.89,124.88,0.05641008]
[1741791047426,2.00272907,124.89,124.88,0.05641008]
[1741791047624,0.0581763,124.91,124.88,0.05641008]
[1741791047931,2.00237355,124.9,124.88,0.05641008]
[1741791048227,8.0084,124.89,124.88,0.05641008]
[1741791048419,0.0581763,124.91,124.88,0.05641008]
[1741791048618,2.06072404,124.91,124.88,0.05641008]
[1741791049023,0.0581763,124.91,124.88,0.05641008]
[1741791051023,0.0581763,124.91,124.9,8.0078]
[1741791051226,45.73758,124.96,124.89,54.00815769]
[1741791051227,3.47758,124.96,124.89,54.00815769]
[1741791051429,0.86058,124.96,124.93,54.00815769]
[1741791051731,2.7052,125.02,124.95,54.00815769]
[1741791051930,2.00118043,125.01,124.97,54.00815769]
[1741791052234,70.18056158,125.03,124.97,54.00815769]
[1741791052534,0.05273304,125.0,124.98,0.05664431]
[1741791053633,0.05273304,125.0,124.99,8.002]
[1741791054332,0.05273304,125.0,124.98,0.05664431]
[1741791055632,0.05273304,125.0,124.99,54.00815769]
[1741791056030,0.05273304,125.0,124.98,50.29914431]
[1741791056225,0.05273304,125.0,124.98,42.29664431]
[1741791056832,0.05273304,125.0,124.98,0.05664431]
[1741791057429,0.05273304,125.0,124.99,54.00815769]
[1741791057628,0.05273304,125.0,124.99,62.01015769]
[1741791058431,0.05273304,125.0,124.99,54.00815769]
[1741791058834,0.05273304,125.0,124.99,62.01015769]
[1741791060431,0.05273304,125.0,124.98,0.05664431]
[1741791060636,0.05273304,125.0,124.99,54.00815769]
[1741791060837,0.05273304,125.0,124.99,62.01015769]
[1741791061038,0.05273304,125.0,124.98,0.05664431]
[1741791061828,0.05273304,125.0,124.99,8.002]
[1741791062635,2.7052,125.05,124.99,62.00815769]
[1741791062936,9.99885748,125.04,125.01,54.00815769]
[1741791063239,2.00012405,125.03,124.98,42.2]
[1741791063536,8.0011,125.01,124.97,54.00815769]
[1741791063736,54.00815769,125.05,124.98,0.06136721]
[1741791063939,0.05831398,125.0,124.98,0.06136721]
[1741791064235,0.05831398,125.0,124.93,96.20815769]
[1741791064236,2.00072471,124.99,124.94,8.0049]
[1741791064536,10.00401658,124.98,124.93,33.20347145]
[1741791064740,5.1295,125.01,124.92,8.0061]
[1741791065038,8.0053,124.94,124.91,273.42347145]
[1741791065238,42.2,124.98,124.91,240.22]
[1741791065439,0.0530899,124.94,124.91,240.27102106]
[1741791065943,0.0530899,124.94,124.93,33.20347145]
[1741791066237,2.00115562,124.97,124.93,33.20347145]
[1741791066435,5.1295,125.01,124.95,33.20347145]
[1741791066737,2.00097668,125.0,124.93,33.20347145]
[1741791067044,7.668e-05,124.99,124.98,8.0027]
[1741791067242,7.668e-05,125.05,124.99,33.20347145]
[1741791067542,5.0922,125.06,125.04,7.9987]
[1741791067735,5.0922,125.06,125.01,33.20347145]
[1741791068245,5.0922,125.06,125.01,53.88827298]
[1741791068442,213.40619089,125.1,125.01,53.88827298]
[1741791068644,0.05994358,125.05,125.04,7.9983]
[1741791068844,7.9964,125.08,125.04,7.9983]
[1741791069031,0.05322318,125.06,125.04,7.9985]
[1741791069434,0.05322318,125.06,125.03,0.05117379]
[1741791070031,0.05322318,125.06,125.03,53.93944677]
[1741791070437,0.05322318,125.06,125.05,53.88827298]
[1741791072038,0.05322318,125.06,125.03,53.93944677]
[1741791072239,0.05322318,125.06,125.03,0.05117379]
[1741791072840,0.05322318,125.06,124.99,240.1]
[1741791073039,42.21322318,125.06,124.95,97.75797298]
[1741791073240,8.0006,125.02,124.95,96.04827298]
[1741791073431,2.4822,125.05,124.95,96.04827298]
[1741791073736,2.4822,125.05,124.97,53.88827298]
[1741791073936,0.05076035,125.01,124.99,0.05121194]
[1741791074637,0.05076035,125.01,124.99,61.94138492]
[1741791074843,0.05076035,125.01,124.99,53.93948492]
[1741791075039,0.05076035,125.01,125.0,8.0014]
[1741791075739,0.05076035,125.01,124.99,96.09948492]
[1741791076440,0.05076035,125.01,124.99,0.05121194]
[1741791076837,8.0014,125.0,124.99,0.05121194]
[1741791077033,0.05076035,125.01,124.99,0.05121194]
[1741791077231,0.05076035,125.01,124.99,53.93948492]
[1741791077434,0.05076035,125.01,125.0,8.0014]
[1741791077633,0.05076035,125.01,124.99,53.93948492]
[1741791079141,8.0014,125.0,124.99,0.05121194]
[1741791079542,8.0014,125.0,124.93,240.02]
[1741791079543,2.00079752,125.0,124.93,301.91397298]
[1741791079747,8.0042,124.96,124.93,293.90827298]
[1741791079936,42.14,125.02,124.93,240.02]
[1741791080141,8.0049,124.95,124.93,240.02]
[1741791080342,47.3223,124.98,124.89,53.88827298]
[1741791080542,2.00149189,124.97,124.94,53.88827298]
[1741791080740,0.056872,124.95,124.94,53.88827298]
[1741791080945,5.1823,125.03,124.94,53.88827298]
[1741791081141,2.00074718,125.02,124.96,53.88827298]
[1741791081342,0.05355292,125.0,124.98,53.88827298]
[1741791081547,0.05355292,125.0,124.99,8.0017]
[1741791081846,0.05543239,125.01,124.98,53.94754831]
[1741791082047,0.05543239,125.01,125.0,8.0014]
[1741791082242,0.05543239,125.01,125.0,61.88967298]
[1741791083449,1.99999802,125.06,125.04,7.9985]
[1741791083648,1.99999802,125.06,125.0,53.88827298]
[1741791084050,1.99999802,125.06,125.02,7.9997]
[1741791084251,1.99999802,125.06,125.0,53.88827298]
[1741791084647,0.0583821,125.04,125.03,7.9991]
[1741791084849,0.0583821,125.04,125.02,0.05730036]
[1741791085643,0.0583821,125.04,124.98,53.88827298]
[1741791085952,2.05838012,125.04,124.96,53.88827298]
[1741791086148,1.99999802,125.03,124.96,53.88827298]
[1741791086356,42.14,125.06,124.96,53.88827298]
[1741791086651,2.00050075,125.05,124.96,53.88827298]
[1741791086854,2.00050075,125.04,124.96,53.88827298]
[1741791087059,0.05594309,125.02,125.0,0.05749528]
[1741791087354,2.00050075,125.02,125.01,8.0004]
[1741791087653,0.0556312,125.02,125.01,8.0004]
[1741791087847,3.12e-05,125.02,125.01,8.0004]
[1741791088754,2.00008599,125.06,125.05,7.9982]
[1741791089452,44.6722,125.12,125.08,7.9962]
[1741791089654,1.99965232,125.11,125.03,96.00827298]
[1741791089854,1.99965232,125.1,125.03,96.00827298]
[1741791090055,0.05773453,125.08,125.06,0.05488954]
[1741791090255,2.05738685,125.08,125.06,0.05488954]
[1741791090452,0.05773453,125.08,125.06,0.05488954]
[1741791091356,7.9969,125.07,125.06,0.05488954]
[1741791091548,2.5657,125.07,124.99,53.88827298]
[1741791091749,14.97443567,125.06,125.0,8.0013]
[1741791092058,53.88827298,125.04,124.95,240.08]
[1741791092363,44.11983567,125.03,124.91,96.00827298]
[1741791092554,1.99983567,125.02,124.91,96.00827298]
[1741791092759,0.05739869,124.98,124.96,0.05937562]
[1741791092960,1.99983567,124.97,124.96,0.05937562]
[1741791093661,1.99983567,124.97,124.91,96.00827298]
[1741791093857,1.99983567,124.96,124.91,96.00827298]
[1741791094058,1.99983567,124.95,124.91,96.00827298]
[1741791094350,8.0029,124.98,124.92,8.0062]
[1741791094552,2.00129866,124.97,124.92,8.0062]
[1741791094758,2.05804759,124.96,124.94,0.05213575]
[1741791094951,2.00129866,124.95,124.94,0.05213575]
[1741791095357,2.00104605,124.95,124.94,0.05213575]
[1741791095855,0.05674893,124.96,124.94,0.05213575]
[1741791096051,0.05674893,124.96,124.95,8.0046]
[1741791096249,2.05776754,124.96,124.94,0.05213575]
[1741791096449,2.00110431,124.95,124.89,293.90827298]
[1741791096657,2.00110431,124.94,124.92,8.0061]
[1741791096854,2.6277,124.99,124.93,53.88827298]
[1741791097050,2.0013039,124.98,124.93,53.88827298]
[1741791097253,2.00114216,124.97,124.93,53.88827298]
[1741791097458,2.00114216,124.96,124.93,53.88827298]
[1741791097661,2.00114216,124.95,124.94,0.05905084]
[1741791098266,10.00574216,124.95,124.94,0.05905084]
[1741791098455,2.00114216,124.95,124.94,0.05905084]
[1741791098861,10.00574216,124.95,124.94,0.05905084]
[1741791099061,8.0046,124.95,124.94,0.05905084]
[1741791099357,8.0059,124.93,124.89,301.91647298]
[1741791099556,2.00157388,124.92,124.89,301.91647298]
[1741791099761,2.00165522,124.91,124.89,240.02]
[1741791099961,8.0055,124.94,124.9,8.0073]
[1741791100260,2.00166747,124.93,124.89,240.02]
[1741791100460,2.00166747,124.92,124.9,8.0074]
[1741791100761,8.06573112,124.93,124.89,240.02]
[1741791100961,2.00164951,124.92,124.89,240.02]
[1741791101158,0.05953112,124.93,124.89,293.90827298]
[1741791101660,8.06573112,124.93,124.9,8.0075]
[1741791101858,0.05953112,124.93,124.89,240.02]
[1741791102054,8.06573112,124.93,124.9,8.0075]
[1741791102259,2.00177911,124.92,124.89,240.02]
[1741791102459,0.05953112,124.93,124.89,240.02]
[1741791102754,2.00175484,124.92,124.9,8.0074]
[1741791102959,2.00175484,124.91,124.9,8.0074]
[1741791103563,0.05953112,124.93,124.91,8.0067]
[1741791103762,2.00189874,124.92,124.89,240.02]
[1741791104063,0.05953112,124.93,124.89,240.02]
[1741791104259,0.05953112,124.93,124.91,53.88827298]
[1741791104763,0.05953112,124.93,124.92,8.0065]
[1741791105058,2.4665,124.98,124.91,53.88827298]
[1741791105264,2.00122107,124.97,124.96,8.0039]
[1741791106265,0.05833673,124.98,124.97,8.0033]
[1741791106563,0.05833673,124.98,124.95,53.94354623]
[1741791106860,2.05919243,124.98,124.97,8.0033]
[1741791107058,0.05833673,124.98,124.97,8.0033]
[1741791107460,2.6271,125.02,125.0,8.0009]
[1741791107766,2.00040433,125.01,125.0,8.0009]
[1741791108367,13.1417,125.05,125.01,8.0007]
[1741791108667,0.0509434,125.02,124.99,0.05337688]
[1741791108864,2.00037945,125.01,125.0,8.0014]
[1741791109059,7.945e-05,125.01,125.0,8.0014]
[1741791109266,0.0509434,125.02,125.0,53.88827298]
[1741791109468,0.0509434,125.02,125.01,8.0008]
[1741791110568,0.0509434,125.02,124.99,0.06115261]
[1741791110961,0.0509434,125.02,125.0,8.0009]
[1741791111168,0.0509434,125.02,124.99,0.06115261]
[1741791111467,0.0509434,125.02,125.0,53.88827298]
[1741791111658,0.0509434,125.02,125.01,8.0008]
[1741791111858,5.1027,125.09,125.0,53.88827298]
[1741791112064,5.1027,125.09,125.03,53.88827298]
[1741791112970,13.0984,125.09,125.04,7.9985]
[1741791113269,0.05867646,125.07,125.05,0.05480861]
[1741791114066,7.9976,125.06,125.05,0.05480861]
[1741791114265,0.05867646,125.07,125.05,0.05480861]
[1741791115366,0.05867646,125.07,125.05,53.94308159]
[1741791115866,0.05867646,125.07,125.06,7.9976]
[1741791116370,0.05867646,125.07,125.05,83.25063954]
[1741791116671,0.05867646,125.07,125.05,0.05480861]
[1741791116870,0.05867646,125.07,124.99,33.13773093]